Workbook

Sheet 問題1000
A2: 1 | B2: P8 | C2: 運動 | D2: うんどう
A3: 2 | B3: P9 | C3: 相談 | D3: そうだん
A4: 3 | C4: 正解 | D4: せいかい
A5: 4 | C5: 名前 | D5: なまえ
A6: 5 | B6: P12 | C6: 乗せる | D6: のせる
A7: 6 | C7: 信号 | D7: しんごう
A8: 7 | C8: 夏みかん | D8: なつみかん
A9: 8 | C9: 運転手 | D9: うんてんしゅ
A10: 9 | B10: P13 | C10: 暑い日 | D10: あついひ
A11: 10 | C11: 速達 | D11: =PHONETIC(C11) -> そくたつ
A12: 11 | C12: 送る | D12: =PHONETIC(C12) -> おくる
A13: 12 | C13: 大通り | D13: おおどおり
A14: 13 | C14: 曲がる | D14: まがる
A15: 14 | C15: 細い | D15: ほそい
A16: 15 | B16: P14 | C16: 車道 | D16: しゃどう
A17: 16 | C17: 飛び出す | D17: とびだす
A18: 17 | B18: P15 | C18: 高くまい上がる | D18: たかくまいあがる
A19: 18 | C19: ため息 | D19: ためいき
A20: 19 | C20: 横を通る | D20: よこをとおる
A21: 20 | C21: 急いでもどる | D21: いそいでもどる
A22: 21 | C22: 運転席 | D22: うんてんせき
A23: 22 | B23: P16 | C23: 辺りを見る | D23: あたりをみる
A24: 23 | C24: 見事な色 | D24: みごとないろ
A25: 24 | C25: 四角い建物 | D25: しかくいたてもの
A26: 25 | C26: つかれた声 | D26: つかれたこえ
A27: 26 | B27: P17 | C27: 菜の花横町 | D27: なのはなよこちょう
A28: 27 | C28: 菜の花橋 | D28: なのはなばし
A29: 28 | C29: 元気そう | D29: げんきそう
A30: 29 | C30: 遠くから | D30: とおくから
A31: 30 | C31: 水色 | D31: みずいろ
A32: 31 | B32: P18 | C32: 客席 | D32: きゃくせき
A33: 32 | C33: 流れる | D33: ながれる
A34: 33 | C34: 男の子の顔 | D34: おとこのこのかお
A35: 34 | B35: P19 | C35: ふり返る | D35: ふりかえる
A36: 35 | C36: 外を見る | D36: そとをみる
A37: 36 | B37: P20 | C37: 団地 | D37: だんち
A38: 37 | C38: 野原 | D38: のはら
A39: 38 | C39: 青々 | D39: あおあお
A40: 39 | C40: わた毛 | D40: わたげ
A41: 40 | C41: 小さな声 | D41: ちいさなこえ
A42: 41 | B42: P22 | C42: 印象 | D42: いんしょう
A43: 42 | C43: 会話 | D43: かいわ
A44: 43 | C44: 理由 | D44: りゆう
A45: 44 | C45: 友達 | D45: ともだち
A46: 45 | B46: P24 | C46: 登場人物 | D46: とうじょうじんぶつ
A47: 46 | C47: 受ける | D47: うける
A48: 47 | C48: 深まる | D48: ふかまる
A49: 48 | C49: 地の文 | D49: じのぶん
A50: 49 | C50: 始まる | D50: はじまる
A51: 50 | B51: P25 | C51: 場面 | D51: ばめん
A52: 51 | B52: P26 | C52: 漢字 | D52: かんじ
A53: 52 | C53: 意味 | D53: いみ
A54: 53 | C54: 花火 | D54: はなび
A55: 54 | C55: 開花 | D55: かいか
A56: 55 | C56: 野菜 | D56: やさい
A57: 56 | C57: 目薬 | D57: めぐすり
A58: 57 | C58: 胃腸薬 | D58: いちょうやく
A59: 58 | C59: 家路 | D59: いえじ
A60: 59 | C60: 家庭菜園 | D60: かていさいえん
A61: 60 | C61: 安らか | D61: やすらか
A62: 61 | C62: 安全安心 | D62: あんぜんあんしん
A63: 62 | C63: 絵筆 | D63: えふで
A64: 63 | C64: 毛筆 | D64: もうひつ
A65: 64 | C65: 木箱 | D65: きばこ
A66: 65 | C66: 箱庭 | D66: はこにわ
A67: 66 | C67: 雨雲 | D67: あまぐも
A68: 67 | C68: 雲海 | D68: うんかい
A69: 68 | C69: 雪国 | D69: ゆきぐに
A70: 69 | C70: 新雪 | D70: しんせつ
A71: 70 | B71: P27 | C71: 悪者 | D71: わるもの
A72: 71 | C72: 悪事 | D72: あくじ
A73: 72 | C73: 決意 | D73: けつい
A74: 73 | C74: 共感 | D74: きょうかん
A75: 74 | C75: 日照り | D75: ひでり
A76: 75 | C76: 照明 | D76: =PHONETIC(C76) -> しょうめい
A77: 76 | C77: 遠出 | D77: とおで
A78: 77 | C78: 遠足 | D78: えんそく
A79: 78 | C79: 近道 | D79: ちかみち
A80: 79 | C80: 近景と遠景 | D80: きんけいとえんけい
A81: 80 | C81: 熱いお湯 | D81: あついおゆ
A82: 81 | C82: 発熱 | D82: はつねつ
A83: 82 | C83: 通り道 | D83: とおりみち
A84: 83 | C84: 通学路 | D84: つうがくろ
A85: 84 | C85: 府立高校 | D85: ふりつこうこう
A86: 85 | C86: 京都府 | D86: きょうとふ
A87: 86 | C87: 広場 | D87: ひろば
A88: 87 | C88: 広告 | D88: こうこく
A89: 88 | C89: 店先 | D89: みせさき
A90: 89 | C90: 商店街 | D90: しょうてんがい
A91: 90 | C91: 図書室 | D91: としょしつ
A92: 91 | C92: 図面 | D92: ずめん
A93: 92 | C93: 田園 | D93: でんえん
A94: 93 | C94: 公園 | D94: こうえん
A95: 94 | C95: 島国 | D95: しまぐに
A96: 95 | C96: 外国 | D96: がいこく
A97: 96 | C97: 海開き | D97: うみびらき
A98: 97 | C98: 開始 | D98: かいし
A99: 98 | C99: 関所 | D99: せきしょ
A100: 99 | C100: 関係 | D100: かんけい
A101: 100 | C101: 間近 | D101: まぢか
A102: 101 | C102: 期間 | D102: きかん
A103: 102 | C103: 植物 | D103: しょくぶつ
A104: 103 | C104: 題名 | D104: だいめい
A105: 104 | C105: 決める | D105: きめる
A106: 105 | C106: 図書係 | D106: としょがかり
A107: 106 | C107: 幸い | D107: さいわい
A108: 107 | C108: 何度も聞く | D108: なんどもきく
A109: 108 | C109: 実験 | D109: じっけん
A110: 109 | C110: 重ねる | D110: かさねる
A111: 110 | C111: 調子 | D111: ちょうし
A112: 111 | C112: 整える | D112: ととのえる
A113: 112 | C113: 役立つ | D113: やくだつ
A114: 113 | C114: 時代の変化 | D114: じだいのへんか
A115: 114 | C115: 化石 | D115: かせき
A116: 115 | C116: 身動き | D116: みうごき
A117: 116 | C117: 全くない | D117: まったくない
A118: 117 | C118: 表通り | D118: おもてどおり
A119: 118 | C119: 取材 | D119: しゅざい
A120: 119 | C120: 放送委員 | D120: ほうそういいん
A121: 120 | C121: 旅をする | D121: たびをする
A122: 121 | C122: 作業時間 | D122: さぎょうじかん
A123: 122 | C123: 病院 | D123: びょういん
A124: 123 | C124: 合流 | D124: ごうりゅう
A125: 124 | C125: 高速道路 | D125: こうそくどうろ
A126: 125 | C126: 空港へ向かう | D126: くうこうへむかう
A127: 126 | C127: 読書感想文 | D127: どくしょかんそうぶん
A128: 127 | C128: 洋服 | D128: ようふく
A129: 128 | C129: 気を配る | D129: きをくばる
A130: 129 | C130: 白組が勝つ | D130: しろぐみがかつ
A131: 130 | C131: 商売の相談 | D131: しょうばいのそうだん
A132: 131 | B132: P29 | C132: 漢字辞典 | D132: かんじじてん
A133: 132 | C133: 成り立ち | D133: なりたち
A134: 133 | C134: 画数 | D134: かくすう
A135: 134 | C135: 語句 | D135: ごく
A136: 135 | C136: 音訓さくいん | D136: おんくんさくいん
A137: 136 | C137: 部首さくいん | D137: ぶしゅさくいん
A138: 137 | C138: 総画さくいん | D138: そうかくさくいん
A139: 138 | C139: 分類する | D139: ぶんるいする
A140: 139 | C140: 筆順に気をつける | D140: =PHONETIC(C140) -> ひつじゅんにきをつける
A141: 140 | B141: P30 | C141: 五十音順 | D141: ごじゅうおんじゅん
A142: 141 | B142: P31 | C142: 東西南北 | D142: とうざいなんぼく
A143: 142 | C143: お社 | D143: おやしろ
A144: 143 | C144: 愛読書 | D144: あいどくしょ
A145: 144 | C145: デヴィ夫人 | D145: デヴィふじん
A146: 145 | C146: 昨夜 | D146: さくや
A147: 146 | C147: 本を正す | D147: もとをただす
A148: 147 | C148: 青年 | D148: せいねん
A149: 148 | C149: 灯台の近く | D149: とうだいのちかく
A150: 149 | B150: P32 | C150: 手帳 | D150: てちょう
A151: 150 | C151: 木の芽 | D151: きのめ
A152: 151 | C152: 若草物語 | D152: わかくさものがたり
A153: 152 | C153: 茶畑 | D153: ちゃばたけ
A154: 153 | C154: 茶所 | D154: ちゃどころ
A155: 154 | C155: 新茶の季節 | D155: しんちゃのきせつ
A156: 155 | C156: 立春 | D156: りっしゅん
A157: 156 | C157: 立秋 | D157: りっしゅう
A158: 157 | B158: P34 | C158: 司会 | D158: しかい
A159: 158 | C159: 管理 | D159: かんり
A160: 159 | C160: 議題 | D160: ぎだい
A161: 160 | C161: 提案 | D161: ていあん
A162: 161 | C162: 参加者 | D162: さんかしゃ
A163: 162 | C163: 目的 | D163: もくてき
A164: 163 | C164: 書記 | D164: しょき
A165: 164 | C165: 時間配分 | D165: じかんはいぶん
A166: 165 | C166: 学級新聞 | D166: がっきゅうしんぶん
A167: 166 | C167: 予定どおり | D167: よていどおり
A168: 167 | B168: P37 | C168: 結果 | D168: けっか
A169: 168 | C169: 工夫する | D169: くふうする
A170: 169 | C170: 明らか | D170: あきらか
A171: 170 | B171: P38 | C171: 返事 | D171: へんじ
A172: 171 | C172: 受け止め方 | D172: うけとめかた
A173: 172 | B173: P40 | C173: 筋肉 | D173: きんにく
A174: 173 | C174: 選手 | D174: せんしゅ
A175: 174 | B175: P41 | C175: 強い力 | D175: つよいちから
A176: 175 | C176: 大切 | D176: たいせつ
A177: 176 | C177: 同時 | D177: どうじ
A178: 177 | C178: 説明文 | D178: せつめいぶん
A179: 178 | C179: 深い関係 | D179: ふかいかんけい
A180: 179 | B180: P42 | C180: 成功 | D180: せいこう
A181: 180 | C181: 失敗 | D181: しっぱい
A182: 181 | C182: 最高 | D182: さいこう
A183: 182 | C183: 陸上 | D183: りくじょう
A184: 183 | C184: 経験 | D184: けいけん
A185: 184 | C185: 方法 | D185: ほうほう
A186: 185 | C186: 楽になる | D186: らくになる
A187: 186 | B187: P43 | C187: 記録する | D187: きろくする
A188: 187 | C188: 必ずしも | D188: かならずしも
A189: 188 | C189: 苦しくなる | D189: くるしくなる
A190: 189 | C190: 高校生 | D190: こうこうせい
A191: 190 | C191: 当時 | D191: とうじ
A192: 191 | C192: 毎日 | D192: まいにち
A193: 192 | C193: 動作 | D193: どうさ
A194: 193 | B194: P44 | C194: 必要 | D194: ひつよう
A195: 194 | C195: 無意識 | D195: むいしき
A196: 195 | B196: P45 | C196: 発見 | D196: はっけん
A197: 196 | C197: 前に進む | D197: まえにすすむ
A198: 197 | C198: 下り坂 | D198: くだりざか
A199: 198 | B199: P46 | C199: 重要 | D199: じゅうよう
A200: 199 | C200: 両手 | D200: りょうて
A201: 200 | C201: 数十メートル | D201: すうじゅうめーとる
... 805 more rows

Sheet 問題印刷
A1: =B1+1 -> 967 | B1: =C1+1 -> 966 | C1: =D1+1 -> 965 | D1: =E1+1 -> 964 | E1: 963 | F1: 962 | G1: 961 | H1: 960 | I1: 959 | J1: 958 | K1: 957 | L1: 956 | M1: 955 | N1: 954 | O1: 953 | P1: =Q1+1 -> 952 | Q1: 951 | T1: 1 | U1: から | V1: 1000
A3: =IF(VLOOKUP(A1,問題1000!$A$1:$D$1001,2,FALSE)="","","P"&VLOOKUP(A1,問題1000!$A$1:$D$1001,2,FALSE)) ->  | B3: =IF(VLOOKUP(B1,問題1000!$A$1:$D$1001,2,FALSE)="","","P"&VLOOKUP(B1,問題1000!$A$1:$D$1001,2,FALSE)) ->  | C3: =IF(VLOOKUP(C1,問題1000!$A$1:$D$1001,2,FALSE)="","","P"&VLOOKUP(C1,問題1000!$A$1:$D$1001,2,FALSE)) ->  | D3: =IF(VLOOKUP(D1,問題1000!$A$1:$D$1001,2,FALSE)="","","P"&VLOOKUP(D1,問題1000!$A$1:$D$1001,2,FALSE)) -> PP103 | E3: =IF(VLOOKUP(E1,問題1000!$A$1:$D$1001,2,FALSE)="","","P"&VLOOKUP(E1,問題1000!$A$1:$D$1001,2,FALSE)) ->  | F3: =IF(VLOOKUP(F1,問題1000!$A$1:$D$1001,2,FALSE)="","","P"&VLOOKUP(F1,問題1000!$A$1:$D$1001,2,FALSE)) ->  | G3: =IF(VLOOKUP(G1,問題1000!$A$1:$D$1001,2,FALSE)="","","P"&VLOOKUP(G1,問題1000!$A$1:$D$1001,2,FALSE)) ->  | H3: =IF(VLOOKUP(H1,問題1000!$A$1:$D$1001,2,FALSE)="","","P"&VLOOKUP(H1,問題1000!$A$1:$D$1001,2,FALSE)) ->  | I3: =IF(VLOOKUP(I1,問題1000!$A$1:$D$1001,2,FALSE)="","","P"&VLOOKUP(I1,問題1000!$A$1:$D$1001,2,FALSE)) -> PP102 | J3: =IF(VLOOKUP(J1,問題1000!$A$1:$D$1001,2,FALSE)="","","P"&VLOOKUP(J1,問題1000!$A$1:$D$1001,2,FALSE)) ->  | K3: =IF(VLOOKUP(K1,問題1000!$A$1:$D$1001,2,FALSE)="","","P"&VLOOKUP(K1,問題1000!$A$1:$D$1001,2,FALSE)) -> PP100 | L3: =IF(VLOOKUP(L1,問題1000!$A$1:$D$1001,2,FALSE)="","","P"&VLOOKUP(L1,問題1000!$A$1:$D$1001,2,FALSE)) -> PP99 | M3: =IF(VLOOKUP(M1,問題1000!$A$1:$D$1001,2,FALSE)="","","P"&VLOOKUP(M1,問題1000!$A$1:$D$1001,2,FALSE)) ->  | N3: =IF(VLOOKUP(N1,問題1000!$A$1:$D$1001,2,FALSE)="","","P"&VLOOKUP(N1,問題1000!$A$1:$D$1001,2,FALSE)) ->  | O3: =IF(VLOOKUP(O1,問題1000!$A$1:$D$1001,2,FALSE)="","","P"&VLOOKUP(O1,問題1000!$A$1:$D$1001,2,FALSE)) -> PP97 | P3: =IF(VLOOKUP(P1,問題1000!$A$1:$D$1001,2,FALSE)="","","P"&VLOOKUP(P1,問題1000!$A$1:$D$1001,2,FALSE)) ->  | Q3: =IF(VLOOKUP(Q1,問題1000!$A$1:$D$1001,2,FALSE)="","","P"&VLOOKUP(Q1,問題1000!$A$1:$D$1001,2,FALSE)) -> 
A4: =VLOOKUP(A1,問題1000!$A$1:$D$1001,3,FALSE) -> きのこ以外食べない | B4: =VLOOKUP(B1,問題1000!$A$1:$D$1001,3,FALSE) -> 意外な結果 | C4: =VLOOKUP(C1,問題1000!$A$1:$D$1001,3,FALSE) -> 米作 | D4: =VLOOKUP(D1,問題1000!$A$1:$D$1001,3,FALSE) -> 野菜の量 | E4: =VLOOKUP(E1,問題1000!$A$1:$D$1001,3,FALSE) -> 関心をもつ | F4: =VLOOKUP(F1,問題1000!$A$1:$D$1001,3,FALSE) -> 感心な行い | G4: =VLOOKUP(G1,問題1000!$A$1:$D$1001,3,FALSE) -> 手芸用品 | H4: =VLOOKUP(H1,問題1000!$A$1:$D$1001,3,FALSE) -> 字を直す | I4: =VLOOKUP(I1,問題1000!$A$1:$D$1001,3,FALSE) -> 病気を治す | J4: =VLOOKUP(J1,問題1000!$A$1:$D$1001,3,FALSE) -> 区別 | K4: =VLOOKUP(K1,問題1000!$A$1:$D$1001,3,FALSE) -> 硬貨 | L4: =VLOOKUP(L1,問題1000!$A$1:$D$1001,3,FALSE) -> 仕組み | M4: =VLOOKUP(M1,問題1000!$A$1:$D$1001,3,FALSE) -> 司書 | N4: =VLOOKUP(N1,問題1000!$A$1:$D$1001,3,FALSE) -> 参考図書 | O4: =VLOOKUP(O1,問題1000!$A$1:$D$1001,3,FALSE) -> 百科事典 | P4: =VLOOKUP(P1,問題1000!$A$1:$D$1001,3,FALSE) -> 加入する | Q4: =VLOOKUP(Q1,問題1000!$A$1:$D$1001,3,FALSE) -> 平和を願う
A5: =B5+1 -> 984 | B5: =C5+1 -> 983 | C5: =D5+1 -> 982 | D5: 981 | E5: 980 | F5: 979 | G5: 978 | H5: 977 | I5: 976 | J5: 975 | K5: 974 | L5: 973 | M5: 972 | N5: 971 | O5: 970 | P5: =Q5+1 -> 969 | Q5: =A1+1 -> 968
A7: =IF(VLOOKUP(A5,問題1000!$A$1:$D$1001,2,FALSE)="","","P"&VLOOKUP(A5,問題1000!$A$1:$D$1001,2,FALSE)) -> PP117 | B7: =IF(VLOOKUP(B5,問題1000!$A$1:$D$1001,2,FALSE)="","","P"&VLOOKUP(B5,問題1000!$A$1:$D$1001,2,FALSE)) -> PP114 | C7: =IF(VLOOKUP(C5,問題1000!$A$1:$D$1001,2,FALSE)="","","P"&VLOOKUP(C5,問題1000!$A$1:$D$1001,2,FALSE)) -> PP113 | D7: =IF(VLOOKUP(D5,問題1000!$A$1:$D$1001,2,FALSE)="","","P"&VLOOKUP(D5,問題1000!$A$1:$D$1001,2,FALSE)) ->  | E7: =IF(VLOOKUP(E5,問題1000!$A$1:$D$1001,2,FALSE)="","","P"&VLOOKUP(E5,問題1000!$A$1:$D$1001,2,FALSE)) -> PP112 | F7: =IF(VLOOKUP(F5,問題1000!$A$1:$D$1001,2,FALSE)="","","P"&VLOOKUP(F5,問題1000!$A$1:$D$1001,2,FALSE)) -> PP111 | G7: =IF(VLOOKUP(G5,問題1000!$A$1:$D$1001,2,FALSE)="","","P"&VLOOKUP(G5,問題1000!$A$1:$D$1001,2,FALSE)) ->  | H7: =IF(VLOOKUP(H5,問題1000!$A$1:$D$1001,2,FALSE)="","","P"&VLOOKUP(H5,問題1000!$A$1:$D$1001,2,FALSE)) -> PP109 | I7: =IF(VLOOKUP(I5,問題1000!$A$1:$D$1001,2,FALSE)="","","P"&VLOOKUP(I5,問題1000!$A$1:$D$1001,2,FALSE)) -> PP108 | J7: =IF(VLOOKUP(J5,問題1000!$A$1:$D$1001,2,FALSE)="","","P"&VLOOKUP(J5,問題1000!$A$1:$D$1001,2,FALSE)) ->  | K7: =IF(VLOOKUP(K5,問題1000!$A$1:$D$1001,2,FALSE)="","","P"&VLOOKUP(K5,問題1000!$A$1:$D$1001,2,FALSE)) ->  | L7: =IF(VLOOKUP(L5,問題1000!$A$1:$D$1001,2,FALSE)="","","P"&VLOOKUP(L5,問題1000!$A$1:$D$1001,2,FALSE)) ->  | M7: =IF(VLOOKUP(M5,問題1000!$A$1:$D$1001,2,FALSE)="","","P"&VLOOKUP(M5,問題1000!$A$1:$D$1001,2,FALSE)) -> PP106 | N7: =IF(VLOOKUP(N5,問題1000!$A$1:$D$1001,2,FALSE)="","","P"&VLOOKUP(N5,問題1000!$A$1:$D$1001,2,FALSE)) ->  | O7: =IF(VLOOKUP(O5,問題1000!$A$1:$D$1001,2,FALSE)="","","P"&VLOOKUP(O5,問題1000!$A$1:$D$1001,2,FALSE)) ->  | P7: =IF(VLOOKUP(P5,問題1000!$A$1:$D$1001,2,FALSE)="","","P"&VLOOKUP(P5,問題1000!$A$1:$D$1001,2,FALSE)) -> PP105 | Q7: =IF(VLOOKUP(Q5,問題1000!$A$1:$D$1001,2,FALSE)="","","P"&VLOOKUP(Q5,問題1000!$A$1:$D$1001,2,FALSE)) -> PP104
A8: =VLOOKUP(A5,問題1000!$A$1:$D$1001,3,FALSE) -> 息をすう | B8: =VLOOKUP(B5,問題1000!$A$1:$D$1001,3,FALSE) -> 草の種 | C8: =VLOOKUP(C5,問題1000!$A$1:$D$1001,3,FALSE) -> 拾い上げる | D8: =VLOOKUP(D5,問題1000!$A$1:$D$1001,3,FALSE) -> 草屋根 | E8: =VLOOKUP(E5,問題1000!$A$1:$D$1001,3,FALSE) -> 唱える | F8: =VLOOKUP(F5,問題1000!$A$1:$D$1001,3,FALSE) -> お日様 | G8: =VLOOKUP(G5,問題1000!$A$1:$D$1001,3,FALSE) -> 目を見開く | H8: =VLOOKUP(H5,問題1000!$A$1:$D$1001,3,FALSE) -> 初雪の降る日 | I8: =VLOOKUP(I5,問題1000!$A$1:$D$1001,3,FALSE) -> 世界の果て | J8: =VLOOKUP(J5,問題1000!$A$1:$D$1001,3,FALSE) -> 冷たい風 | K8: =VLOOKUP(K5,問題1000!$A$1:$D$1001,3,FALSE) -> 粉雪がまう | L8: =VLOOKUP(L5,問題1000!$A$1:$D$1001,3,FALSE) -> 店番をする | M8: =VLOOKUP(M5,問題1000!$A$1:$D$1001,3,FALSE) -> 停留所 | N8: =VLOOKUP(N5,問題1000!$A$1:$D$1001,3,FALSE) -> 飛び込む | O8: =VLOOKUP(O5,問題1000!$A$1:$D$1001,3,FALSE) -> 軽くて転がる | P8: =VLOOKUP(P5,問題1000!$A$1:$D$1001,3,FALSE) -> 真ん丸 | Q8: =VLOOKUP(Q5,問題1000!$A$1:$D$1001,3,FALSE) -> 一本道
B9: =C9+1 -> 1000 | C9: =D9+1 -> 999 | D9: 998 | E9: 997 | F9: 996 | G9: 995 | H9: 994 | I9: 993 | J9: 992 | K9: 991 | L9: 990 | M9: 989 | N9: 988 | O9: 987 | P9: =Q9+1 -> 986 | Q9: =A5+1 -> 985
B11: =IF(VLOOKUP(B9,問題1000!$A$1:$D$1001,2,FALSE)="","","P"&VLOOKUP(B9,問題1000!$A$1:$D$1001,2,FALSE)) ->  | C11: =IF(VLOOKUP(C9,問題1000!$A$1:$D$1001,2,FALSE)="","","P"&VLOOKUP(C9,問題1000!$A$1:$D$1001,2,FALSE)) ->  | D11: =IF(VLOOKUP(D9,問題1000!$A$1:$D$1001,2,FALSE)="","","P"&VLOOKUP(D9,問題1000!$A$1:$D$1001,2,FALSE)) ->  | E11: =IF(VLOOKUP(E9,問題1000!$A$1:$D$1001,2,FALSE)="","","P"&VLOOKUP(E9,問題1000!$A$1:$D$1001,2,FALSE)) -> PP129 | F11: =IF(VLOOKUP(F9,問題1000!$A$1:$D$1001,2,FALSE)="","","P"&VLOOKUP(F9,問題1000!$A$1:$D$1001,2,FALSE)) ->  | G11: =IF(VLOOKUP(G9,問題1000!$A$1:$D$1001,2,FALSE)="","","P"&VLOOKUP(G9,問題1000!$A$1:$D$1001,2,FALSE)) ->  | H11: =IF(VLOOKUP(H9,問題1000!$A$1:$D$1001,2,FALSE)="","","P"&VLOOKUP(H9,問題1000!$A$1:$D$1001,2,FALSE)) -> PP128 | I11: =IF(VLOOKUP(I9,問題1000!$A$1:$D$1001,2,FALSE)="","","P"&VLOOKUP(I9,問題1000!$A$1:$D$1001,2,FALSE)) -> PP127 | J11: =IF(VLOOKUP(J9,問題1000!$A$1:$D$1001,2,FALSE)="","","P"&VLOOKUP(J9,問題1000!$A$1:$D$1001,2,FALSE)) -> PP124 | K11: =IF(VLOOKUP(K9,問題1000!$A$1:$D$1001,2,FALSE)="","","P"&VLOOKUP(K9,問題1000!$A$1:$D$1001,2,FALSE)) ->  | L11: =IF(VLOOKUP(L9,問題1000!$A$1:$D$1001,2,FALSE)="","","P"&VLOOKUP(L9,問題1000!$A$1:$D$1001,2,FALSE)) ->  | M11: =IF(VLOOKUP(M9,問題1000!$A$1:$D$1001,2,FALSE)="","","P"&VLOOKUP(M9,問題1000!$A$1:$D$1001,2,FALSE)) ->  | N11: =IF(VLOOKUP(N9,問題1000!$A$1:$D$1001,2,FALSE)="","","P"&VLOOKUP(N9,問題1000!$A$1:$D$1001,2,FALSE)) ->  | O11: =IF(VLOOKUP(O9,問題1000!$A$1:$D$1001,2,FALSE)="","","P"&VLOOKUP(O9,問題1000!$A$1:$D$1001,2,FALSE)) -> PP123 | P11: =IF(VLOOKUP(P9,問題1000!$A$1:$D$1001,2,FALSE)="","","P"&VLOOKUP(P9,問題1000!$A$1:$D$1001,2,FALSE)) ->  | Q11: =IF(VLOOKUP(Q9,問題1000!$A$1:$D$1001,2,FALSE)="","","P"&VLOOKUP(Q9,問題1000!$A$1:$D$1001,2,FALSE)) -> PP118
B12: =VLOOKUP(B9,問題1000!$A$1:$D$1001,3,FALSE) -> 光村図書 | C12: =VLOOKUP(C9,問題1000!$A$1:$D$1001,3,FALSE) -> 国語 | D12: =VLOOKUP(D9,問題1000!$A$1:$D$1001,3,FALSE) -> 短くする | E12: =VLOOKUP(E9,問題1000!$A$1:$D$1001,3,FALSE) -> 印象づける | F12: =VLOOKUP(F9,問題1000!$A$1:$D$1001,3,FALSE) -> 文章の種類 | G12: =VLOOKUP(G9,問題1000!$A$1:$D$1001,3,FALSE) -> 登場人物 | H12: =VLOOKUP(H9,問題1000!$A$1:$D$1001,3,FALSE) -> 重要な言葉 | I12: =VLOOKUP(I9,問題1000!$A$1:$D$1001,3,FALSE) -> 図表を使う | J12: =VLOOKUP(J9,問題1000!$A$1:$D$1001,3,FALSE) -> 飛行機 | K12: =VLOOKUP(K9,問題1000!$A$1:$D$1001,3,FALSE) -> 必死 | L12: =VLOOKUP(L9,問題1000!$A$1:$D$1001,3,FALSE) -> 国際交流 | M12: =VLOOKUP(M9,問題1000!$A$1:$D$1001,3,FALSE) -> 他校生 | N12: =VLOOKUP(N9,問題1000!$A$1:$D$1001,3,FALSE) -> 毛筆 | O12: =VLOOKUP(O9,問題1000!$A$1:$D$1001,3,FALSE) -> 進級 | P12: =VLOOKUP(P9,問題1000!$A$1:$D$1001,3,FALSE) -> 取り囲む | Q12: =VLOOKUP(Q9,問題1000!$A$1:$D$1001,3,FALSE) -> 食堂
A13: =B13+1 -> 967 | B13: =C13+1 -> 966 | C13: =D13+1 -> 965 | D13: =E13+1 -> 964 | E13: =F13+1 -> 963 | F13: =G13+1 -> 962 | G13: =H13+1 -> 961 | H13: =I13+1 -> 960 | I13: =J13+1 -> 959 | J13: =K13+1 -> 958 | K13: =L13+1 -> 957 | L13: =M13+1 -> 956 | M13: =N13+1 -> 955 | N13: =O13+1 -> 954 | O13: =P13+1 -> 953 | P13: =Q13+1 -> 952 | Q13: =Q1 -> 951
A15: =IF(VLOOKUP(A13,問題1000!$A$1:$D$1001,2,FALSE)="","","P"&VLOOKUP(A13,問題1000!$A$1:$D$1001,2,FALSE)) ->  | B15: =IF(VLOOKUP(B13,問題1000!$A$1:$D$1001,2,FALSE)="","","P"&VLOOKUP(B13,問題1000!$A$1:$D$1001,2,FALSE)) ->  | C15: =IF(VLOOKUP(C13,問題1000!$A$1:$D$1001,2,FALSE)="","","P"&VLOOKUP(C13,問題1000!$A$1:$D$1001,2,FALSE)) ->  | D15: =IF(VLOOKUP(D13,問題1000!$A$1:$D$1001,2,FALSE)="","","P"&VLOOKUP(D13,問題1000!$A$1:$D$1001,2,FALSE)) -> PP103 | E15: =IF(VLOOKUP(E13,問題1000!$A$1:$D$1001,2,FALSE)="","","P"&VLOOKUP(E13,問題1000!$A$1:$D$1001,2,FALSE)) ->  | F15: =IF(VLOOKUP(F13,問題1000!$A$1:$D$1001,2,FALSE)="","","P"&VLOOKUP(F13,問題1000!$A$1:$D$1001,2,FALSE)) ->  | G15: =IF(VLOOKUP(G13,問題1000!$A$1:$D$1001,2,FALSE)="","","P"&VLOOKUP(G13,問題1000!$A$1:$D$1001,2,FALSE)) ->  | H15: =IF(VLOOKUP(H13,問題1000!$A$1:$D$1001,2,FALSE)="","","P"&VLOOKUP(H13,問題1000!$A$1:$D$1001,2,FALSE)) ->  | I15: =IF(VLOOKUP(I13,問題1000!$A$1:$D$1001,2,FALSE)="","","P"&VLOOKUP(I13,問題1000!$A$1:$D$1001,2,FALSE)) -> PP102 | J15: =IF(VLOOKUP(J13,問題1000!$A$1:$D$1001,2,FALSE)="","","P"&VLOOKUP(J13,問題1000!$A$1:$D$1001,2,FALSE)) ->  | K15: =IF(VLOOKUP(K13,問題1000!$A$1:$D$1001,2,FALSE)="","","P"&VLOOKUP(K13,問題1000!$A$1:$D$1001,2,FALSE)) -> PP100 | L15: =IF(VLOOKUP(L13,問題1000!$A$1:$D$1001,2,FALSE)="","","P"&VLOOKUP(L13,問題1000!$A$1:$D$1001,2,FALSE)) -> PP99 | M15: =IF(VLOOKUP(M13,問題1000!$A$1:$D$1001,2,FALSE)="","","P"&VLOOKUP(M13,問題1000!$A$1:$D$1001,2,FALSE)) ->  | N15: =IF(VLOOKUP(N13,問題1000!$A$1:$D$1001,2,FALSE)="","","P"&VLOOKUP(N13,問題1000!$A$1:$D$1001,2,FALSE)) ->  | O15: =IF(VLOOKUP(O13,問題1000!$A$1:$D$1001,2,FALSE)="","","P"&VLOOKUP(O13,問題1000!$A$1:$D$1001,2,FALSE)) -> PP97 | P15: =IF(VLOOKUP(P13,問題1000!$A$1:$D$1001,2,FALSE)="","","P"&VLOOKUP(P13,問題1000!$A$1:$D$1001,2,FALSE)) ->  | Q15: =IF(VLOOKUP(Q13,問題1000!$A$1:$D$1001,2,FALSE)="","","P"&VLOOKUP(Q13,問題1000!$A$1:$D$1001,2,FALSE)) -> 
A16: =VLOOKUP(A13,問題1000!$A$1:$D$1001,4,FALSE) -> きのこいがいたべない | B16: =VLOOKUP(B13,問題1000!$A$1:$D$1001,4,FALSE) -> いがいなけっか | C16: =VLOOKUP(C13,問題1000!$A$1:$D$1001,4,FALSE) -> べいさく | D16: =VLOOKUP(D13,問題1000!$A$1:$D$1001,4,FALSE) -> やさいのりょう | E16: =VLOOKUP(E13,問題1000!$A$1:$D$1001,4,FALSE) -> かんしんをもつ | F16: =VLOOKUP(F13,問題1000!$A$1:$D$1001,4,FALSE) -> かんしんなおこない | G16: =VLOOKUP(G13,問題1000!$A$1:$D$1001,4,FALSE) -> しゅげいようひん | H16: =VLOOKUP(H13,問題1000!$A$1:$D$1001,4,FALSE) -> じをなおす | I16: =VLOOKUP(I13,問題1000!$A$1:$D$1001,4,FALSE) -> びょうきをなおす | J16: =VLOOKUP(J13,問題1000!$A$1:$D$1001,4,FALSE) -> くべつ | K16: =VLOOKUP(K13,問題1000!$A$1:$D$1001,4,FALSE) -> こうか | L16: =VLOOKUP(L13,問題1000!$A$1:$D$1001,4,FALSE) -> しくみ | M16: =VLOOKUP(M13,問題1000!$A$1:$D$1001,4,FALSE) -> ししょ | N16: =VLOOKUP(N13,問題1000!$A$1:$D$1001,4,FALSE) -> さんこうとしょ | O16: =VLOOKUP(O13,問題1000!$A$1:$D$1001,4,FALSE) -> ひゃっかじてん | P16: =VLOOKUP(P13,問題1000!$A$1:$D$1001,4,FALSE) -> かにゅうする | Q16: =VLOOKUP(Q13,問題1000!$A$1:$D$1001,4,FALSE) -> へいわをねがう
A17: =B17+1 -> 984 | B17: =C17+1 -> 983 | C17: =D17+1 -> 982 | D17: =E17+1 -> 981 | E17: =F17+1 -> 980 | F17: =G17+1 -> 979 | G17: =H17+1 -> 978 | H17: =I17+1 -> 977 | I17: =J17+1 -> 976 | J17: =K17+1 -> 975 | K17: =L17+1 -> 974 | L17: =M17+1 -> 973 | M17: =N17+1 -> 972 | N17: =O17+1 -> 971 | O17: =P17+1 -> 970 | P17: =Q17+1 -> 969 | Q17: =A13+1 -> 968
A19: =IF(VLOOKUP(A17,問題1000!$A$1:$D$1001,2,FALSE)="","","P"&VLOOKUP(A17,問題1000!$A$1:$D$1001,2,FALSE)) -> PP117 | B19: =IF(VLOOKUP(B17,問題1000!$A$1:$D$1001,2,FALSE)="","","P"&VLOOKUP(B17,問題1000!$A$1:$D$1001,2,FALSE)) -> PP114 | C19: =IF(VLOOKUP(C17,問題1000!$A$1:$D$1001,2,FALSE)="","","P"&VLOOKUP(C17,問題1000!$A$1:$D$1001,2,FALSE)) -> PP113 | D19: =IF(VLOOKUP(D17,問題1000!$A$1:$D$1001,2,FALSE)="","","P"&VLOOKUP(D17,問題1000!$A$1:$D$1001,2,FALSE)) ->  | E19: =IF(VLOOKUP(E17,問題1000!$A$1:$D$1001,2,FALSE)="","","P"&VLOOKUP(E17,問題1000!$A$1:$D$1001,2,FALSE)) -> PP112 | F19: =IF(VLOOKUP(F17,問題1000!$A$1:$D$1001,2,FALSE)="","","P"&VLOOKUP(F17,問題1000!$A$1:$D$1001,2,FALSE)) -> PP111 | G19: =IF(VLOOKUP(G17,問題1000!$A$1:$D$1001,2,FALSE)="","","P"&VLOOKUP(G17,問題1000!$A$1:$D$1001,2,FALSE)) ->  | H19: =IF(VLOOKUP(H17,問題1000!$A$1:$D$1001,2,FALSE)="","","P"&VLOOKUP(H17,問題1000!$A$1:$D$1001,2,FALSE)) -> PP109 | I19: =IF(VLOOKUP(I17,問題1000!$A$1:$D$1001,2,FALSE)="","","P"&VLOOKUP(I17,問題1000!$A$1:$D$1001,2,FALSE)) -> PP108 | J19: =IF(VLOOKUP(J17,問題1000!$A$1:$D$1001,2,FALSE)="","","P"&VLOOKUP(J17,問題1000!$A$1:$D$1001,2,FALSE)) ->  | K19: =IF(VLOOKUP(K17,問題1000!$A$1:$D$1001,2,FALSE)="","","P"&VLOOKUP(K17,問題1000!$A$1:$D$1001,2,FALSE)) ->  | L19: =IF(VLOOKUP(L17,問題1000!$A$1:$D$1001,2,FALSE)="","","P"&VLOOKUP(L17,問題1000!$A$1:$D$1001,2,FALSE)) ->  | M19: =IF(VLOOKUP(M17,問題1000!$A$1:$D$1001,2,FALSE)="","","P"&VLOOKUP(M17,問題1000!$A$1:$D$1001,2,FALSE)) -> PP106 | N19: =IF(VLOOKUP(N17,問題1000!$A$1:$D$1001,2,FALSE)="","","P"&VLOOKUP(N17,問題1000!$A$1:$D$1001,2,FALSE)) ->  | O19: =IF(VLOOKUP(O17,問題1000!$A$1:$D$1001,2,FALSE)="","","P"&VLOOKUP(O17,問題1000!$A$1:$D$1001,2,FALSE)) ->  | P19: =IF(VLOOKUP(P17,問題1000!$A$1:$D$1001,2,FALSE)="","","P"&VLOOKUP(P17,問題1000!$A$1:$D$1001,2,FALSE)) -> PP105 | Q19: =IF(VLOOKUP(Q17,問題1000!$A$1:$D$1001,2,FALSE)="","","P"&VLOOKUP(Q17,問題1000!$A$1:$D$1001,2,FALSE)) -> PP104
A20: =VLOOKUP(A17,問題1000!$A$1:$D$1001,4,FALSE) -> いきをすう | B20: =VLOOKUP(B17,問題1000!$A$1:$D$1001,4,FALSE) -> くさのたね | C20: =VLOOKUP(C17,問題1000!$A$1:$D$1001,4,FALSE) -> ひろいあげる | D20: =VLOOKUP(D17,問題1000!$A$1:$D$1001,4,FALSE) -> くさやね | E20: =VLOOKUP(E17,問題1000!$A$1:$D$1001,4,FALSE) -> となえる | F20: =VLOOKUP(F17,問題1000!$A$1:$D$1001,4,FALSE) -> おひさま | G20: =VLOOKUP(G17,問題1000!$A$1:$D$1001,4,FALSE) -> めをみひらく | H20: =VLOOKUP(H17,問題1000!$A$1:$D$1001,4,FALSE) -> はつゆきのふるひ | I20: =VLOOKUP(I17,問題1000!$A$1:$D$1001,4,FALSE) -> せかいのはて | J20: =VLOOKUP(J17,問題1000!$A$1:$D$1001,4,FALSE) -> つめたいかぜ | K20: =VLOOKUP(K17,問題1000!$A$1:$D$1001,4,FALSE) -> こなゆきがまう | L20: =VLOOKUP(L17,問題1000!$A$1:$D$1001,4,FALSE) -> みせばんをする | M20: =VLOOKUP(M17,問題1000!$A$1:$D$1001,4,FALSE) -> ていりゅうじょ | N20: =VLOOKUP(N17,問題1000!$A$1:$D$1001,4,FALSE) -> とびこむ | O20: =VLOOKUP(O17,問題1000!$A$1:$D$1001,4,FALSE) -> かるくてころがる | P20: =VLOOKUP(P17,問題1000!$A$1:$D$1001,4,FALSE) -> まんまる | Q20: =VLOOKUP(Q17,問題1000!$A$1:$D$1001,4,FALSE) -> いっぽんみち
B21: =C21+1 -> 1000 | C21: =D21+1 -> 999 | D21: =E21+1 -> 998 | E21: =F21+1 -> 997 | F21: =G21+1 -> 996 | G21: =H21+1 -> 995 | H21: =I21+1 -> 994 | I21: =J21+1 -> 993 | J21: =K21+1 -> 992 | K21: =L21+1 -> 991 | L21: =M21+1 -> 990 | M21: =N21+1 -> 989 | N21: =O21+1 -> 988 | O21: =P21+1 -> 987 | P21: =Q21+1 -> 986 | Q21: =A17+1 -> 985
B23: =IF(VLOOKUP(B21,問題1000!$A$1:$D$1001,2,FALSE)="","","P"&VLOOKUP(B21,問題1000!$A$1:$D$1001,2,FALSE)) ->  | C23: =IF(VLOOKUP(C21,問題1000!$A$1:$D$1001,2,FALSE)="","","P"&VLOOKUP(C21,問題1000!$A$1:$D$1001,2,FALSE)) ->  | D23: =IF(VLOOKUP(D21,問題1000!$A$1:$D$1001,2,FALSE)="","","P"&VLOOKUP(D21,問題1000!$A$1:$D$1001,2,FALSE)) ->  | E23: =IF(VLOOKUP(E21,問題1000!$A$1:$D$1001,2,FALSE)="","","P"&VLOOKUP(E21,問題1000!$A$1:$D$1001,2,FALSE)) -> PP129 | F23: =IF(VLOOKUP(F21,問題1000!$A$1:$D$1001,2,FALSE)="","","P"&VLOOKUP(F21,問題1000!$A$1:$D$1001,2,FALSE)) ->  | G23: =IF(VLOOKUP(G21,問題1000!$A$1:$D$1001,2,FALSE)="","","P"&VLOOKUP(G21,問題1000!$A$1:$D$1001,2,FALSE)) ->  | H23: =IF(VLOOKUP(H21,問題1000!$A$1:$D$1001,2,FALSE)="","","P"&VLOOKUP(H21,問題1000!$A$1:$D$1001,2,FALSE)) -> PP128 | I23: =IF(VLOOKUP(I21,問題1000!$A$1:$D$1001,2,FALSE)="","","P"&VLOOKUP(I21,問題1000!$A$1:$D$1001,2,FALSE)) -> PP127 | J23: =IF(VLOOKUP(J21,問題1000!$A$1:$D$1001,2,FALSE)="","","P"&VLOOKUP(J21,問題1000!$A$1:$D$1001,2,FALSE)) -> PP124 | K23: =IF(VLOOKUP(K21,問題1000!$A$1:$D$1001,2,FALSE)="","","P"&VLOOKUP(K21,問題1000!$A$1:$D$1001,2,FALSE)) ->  | L23: =IF(VLOOKUP(L21,問題1000!$A$1:$D$1001,2,FALSE)="","","P"&VLOOKUP(L21,問題1000!$A$1:$D$1001,2,FALSE)) ->  | M23: =IF(VLOOKUP(M21,問題1000!$A$1:$D$1001,2,FALSE)="","","P"&VLOOKUP(M21,問題1000!$A$1:$D$1001,2,FALSE)) ->  | N23: =IF(VLOOKUP(N21,問題1000!$A$1:$D$1001,2,FALSE)="","","P"&VLOOKUP(N21,問題1000!$A$1:$D$1001,2,FALSE)) ->  | O23: =IF(VLOOKUP(O21,問題1000!$A$1:$D$1001,2,FALSE)="","","P"&VLOOKUP(O21,問題1000!$A$1:$D$1001,2,FALSE)) -> PP123 | P23: =IF(VLOOKUP(P21,問題1000!$A$1:$D$1001,2,FALSE)="","","P"&VLOOKUP(P21,問題1000!$A$1:$D$1001,2,FALSE)) ->  | Q23: =IF(VLOOKUP(Q21,問題1000!$A$1:$D$1001,2,FALSE)="","","P"&VLOOKUP(Q21,問題1000!$A$1:$D$1001,2,FALSE)) -> PP118
B24: =VLOOKUP(B21,問題1000!$A$1:$D$1001,4,FALSE) -> みつむらとしょ | C24: =VLOOKUP(C21,問題1000!$A$1:$D$1001,4,FALSE) -> こくご | D24: =VLOOKUP(D21,問題1000!$A$1:$D$1001,4,FALSE) -> みじかくする | E24: =VLOOKUP(E21,問題1000!$A$1:$D$1001,4,FALSE) -> いんしょうづける | F24: =VLOOKUP(F21,問題1000!$A$1:$D$1001,4,FALSE) -> ぶんしょうのしゅるい | G24: =VLOOKUP(G21,問題1000!$A$1:$D$1001,4,FALSE) -> とうじょうじんぶつ | H24: =VLOOKUP(H21,問題1000!$A$1:$D$1001,4,FALSE) -> じゅうようなことば | I24: =VLOOKUP(I21,問題1000!$A$1:$D$1001,4,FALSE) -> ずひょうをつかう | J24: =VLOOKUP(J21,問題1000!$A$1:$D$1001,4,FALSE) -> ひこうき | K24: =VLOOKUP(K21,問題1000!$A$1:$D$1001,4,FALSE) -> ひっし | L24: =VLOOKUP(L21,問題1000!$A$1:$D$1001,4,FALSE) -> こくさいこうりゅう | M24: =VLOOKUP(M21,問題1000!$A$1:$D$1001,4,FALSE) -> たこうせい | N24: =VLOOKUP(N21,問題1000!$A$1:$D$1001,4,FALSE) -> もうひつ | O24: =VLOOKUP(O21,問題1000!$A$1:$D$1001,4,FALSE) -> しんきゅう | P24: =VLOOKUP(P21,問題1000!$A$1:$D$1001,4,FALSE) -> とりかこむ | Q24: =VLOOKUP(Q21,問題1000!$A$1:$D$1001,4,FALSE) -> しょくどう

Sheet Sheet3
